bitfinex-derivatives/quotes_BTCF0:USTF0_20250930
["timestamp","ask_amount","ask_price","bid_price","bid_amount"]
[1759241796031,1.35829551,113270.0,113260.0,0.0882554]
[1759241796227,0.51917551,113270.0,113260.0,0.0882554]
[1759241796437,1.35829551,113270.0,113260.0,0.0882554]
[1759241796736,1.35909551,113270.0,113260.0,0.0882554]
[1759241797033,0.0882632,113250.0,113240.0,0.0882681]
[1759241797430,0.3608,113250.0,113240.0,0.0882681]
[1759241798030,0.4490616,113260.0,113250.0,0.088264]
[1759241799236,0.4490616,113260.0,113250.0,0.0882638]
[1759241800340,0.0882638,113250.0,113240.0,0.0942715]
[1759241800532,0.4490638,113250.0,113240.0,0.0882715]
[1759241800732,1.2881438,113250.0,113240.0,0.0882715]
[1759241800933,0.3608,113250.0,113240.0,0.0882715]
[1759241801236,0.3618,113260.0,113250.0,0.0882638]
[1759241801436,1.20088,113260.0,113250.0,0.0882638]
[1759241801632,1.19988,113260.0,113250.0,0.0882638]
[1759241801827,0.3612,113260.0,113250.0,0.5425915]
[1759241802032,0.3608,113260.0,113250.0,0.5425915]
[1759241802239,0.0004,113260.0,113250.0,0.4490638]
[1759241802436,0.0004,113260.0,113250.0,1.3033915]
[1759241802739,0.43172651,113270.0,113260.0,0.088255]
[1759241802929,0.07092651,113270.0,113260.0,0.5425827]
[1759241803128,0.07012651,113270.0,113260.0,0.5425827]
[1759241803328,0.0004,113270.0,113260.0,0.088255]
[1759241804634,0.0004,113270.0,113260.0,0.5425827]
[1759241805037,0.3682,113270.0,113260.0,0.088255]
[1759241805239,0.0074,113270.0,113260.0,0.088255]
[1759241805639,0.07645361,113270.0,113260.0,0.088255]
[1759241805835,0.0074,113270.0,113260.0,0.088255]
[1759241807338,0.0074,113270.0,113260.0,0.449055]
[1759241807538,0.0074,113270.0,113260.0,1.3033827]
[1759241808046,0.3678,113270.0,113260.0,0.488255]
[1759241808339,0.3682,113270.0,113260.0,0.088255]
[1759241808544,0.4564482,113270.0,113260.0,0.088255]
[1759241808846,0.9107798,113270.0,113260.0,0.088256]
[1759241809141,0.9818451,113270.0,113260.0,0.088256]
[1759241809333,0.0882561,113260.0,113250.0,0.0882583]
[1759241809539,0.4490561,113260.0,113250.0,0.0882583]
[1759241809739,0.3608,113260.0,113250.0,0.0882583]
[1759241809945,0.449056,113260.0,113250.0,0.0882583]
[1759241810146,0.9033837,113260.0,113250.0,0.0882583]
[1759241810345,0.3608,113260.0,113250.0,0.0882583]
[1759241810546,0.449056,113260.0,113250.0,0.0882583]
[1759241811747,0.450056,113260.0,113250.0,0.0882583]
[1759241812651,0.3618,113260.0,113250.0,0.0882583]
[1759241813053,0.4500549,113260.0,113250.0,0.0882583]
[1759241813653,0.3618,113260.0,113250.0,0.0882583]
[1759241813954,0.4500549,113260.0,113250.0,0.0882583]
[1759241814355,0.4500549,113260.0,113250.0,0.13584762]
[1759241815554,0.4500549,113260.0,113250.0,0.13584754]
[1759241816145,0.9727693,113260.0,113250.0,0.13584754]
[1759241816753,0.4500549,113260.0,113250.0,0.13584754]
[1759241817855,0.3618,113260.0,113250.0,0.13584754]
[1759241818352,0.4500549,113260.0,113250.0,0.13584754]
[1759241818952,0.001,113260.0,113250.0,0.0882583]
[1759241819151,0.001,113260.0,113250.0,0.67442513]
[1759241819545,0.001,113260.0,113250.0,0.15171073]
[1759241819851,0.001,113260.0,113250.0,0.67442513]
[1759241820351,0.001,113260.0,113250.0,1.07442513]
[1759241820543,0.001,113260.0,113250.0,2.27402513]
[1759241820746,0.07034479,113270.0,113260.0,0.0882549]
[1759241820948,0.00036676,113270.0,113260.0,1.05108484]
[1759241821148,0.0016,113280.0,113260.0,1.05108484]
[1759241821149,0.0016,113280.0,113270.0,0.0882471]
[1759241821447,0.0016,113280.0,113270.0,2.2105215]
[1759241821652,0.07200548,113290.0,113280.0,0.0882393]
[1759241821847,1.03612,113300.0,113290.0,0.0882315]
[1759241822154,0.3608,113300.0,113290.0,0.13578749]
[1759241822356,0.3612,113300.0,113290.0,0.65850189]
[1759241822551,0.3608,113300.0,113290.0,0.13578749]
[1759241822755,0.3612,113300.0,113290.0,0.65850189]
[1759241822952,0.3608,113300.0,113290.0,0.67435402]
[1759241823151,1.30077363,113310.0,113300.0,0.0882248]
[1759241823354,1.30077353,113310.0,113300.0,0.16744108]
[1759241824244,1.30077353,113310.0,113300.0,0.07921628]
[1759241824444,0.46205353,113310.0,113300.0,0.69015548]
[1759241824662,0.37383763,113310.0,113300.0,0.64262571]
[1759241824848,1.30069343,113310.0,113300.0,0.11991131]
[1759241825559,0.47605343,113310.0,113300.0,0.14364641]
[1759241825749,1.38456473,113310.0,113300.0,0.14364641]
[1759241826851,1.37056473,113310.0,113300.0,0.14364641]
[1759241827156,1.28234893,113310.0,113300.0,0.14364641]
[1759241827451,1.29630893,113310.0,113300.0,0.14364641]
[1759241827654,1.38452473,113310.0,113300.0,0.14364641]
[1759241828055,0.54596473,113310.0,113300.0,0.14364641]
[1759241828255,0.45774893,113310.0,113300.0,0.14364641]
[1759241828557,0.0839113,113310.0,113300.0,1.09015548]
[1759241828856,0.0843113,113310.0,113300.0,1.09015548]
[1759241830158,0.0699113,113310.0,113300.0,1.05846897]
[1759241830358,0.0124,113310.0,113300.0,1.05846897]
[1759241830553,0.0124,113310.0,113300.0,0.53575457]
[1759241830755,0.0004,113310.0,113300.0,1.05846897]
[1759241832157,0.0004,113310.0,113300.0,1.41926897]
[1759241832354,0.0004,113310.0,113300.0,1.42799434]
[1759241832655,0.3608,113330.0,113320.0,0.0882079]
[1759241832851,0.36959525,113330.0,113320.0,0.66619586]
[1759241833046,0.38140237,113340.0,113330.0,0.0882001]
[1759241833354,0.38140237,113340.0,113330.0,0.63460099]
[1759241833355,0.09097767,113340.0,113330.0,0.63460099]
[1759241833552,0.0695753,113340.0,113330.0,0.66618588]
[1759241833746,0.0004,113340.0,113330.0,0.66618588]
[1759241833952,0.0004,113340.0,113330.0,0.64249939]
[1759241834151,0.0004,113340.0,113330.0,0.11978499]
[1759241834552,0.0885923,113340.0,113330.0,0.11978499]
[1759241834748,0.4553923,113340.0,113330.0,0.11978499]
[1759241835060,0.3672,113340.0,113330.0,0.11978499]
[1759241835248,0.3612,113340.0,113330.0,0.11978499]
[1759241835460,0.3612,113340.0,113330.0,0.0882001]
[1759241835754,0.449394,113340.0,113330.0,0.0882001]
[1759241836059,0.0004,113340.0,113330.0,0.0882001]
[1759241836360,0.3612,113340.0,113330.0,0.0882001]
[1759241837163,0.449394,113340.0,113330.0,0.0882001]
[1759241837455,0.449394,113340.0,113330.0,0.11182151]
[1759241837660,0.449394,113340.0,113330.0,0.0882001]
[1759241838556,0.52033781,113340.0,113330.0,0.0882001]
[1759241838756,1.04305221,113340.0,113330.0,0.0882017]
[1759241838955,0.52033781,113340.0,113330.0,0.0882017]
[1759241839961,1.35833781,113340.0,113330.0,0.0882017]
[1759241841165,0.0882017,113330.0,113320.0,0.11182441]
[1759241841356,0.9717161,113330.0,113320.0,0.088203]
[1759241841665,0.0882095,113320.0,113310.0,0.11183261]
[1759241841959,0.4490095,113320.0,113310.0,0.0882112]
[1759241842267,0.3608,113320.0,113310.0,0.11183261]
[1759241842564,0.3608,113320.0,113310.0,0.63454701]
[1759241843067,0.3608,113320.0,113310.0,0.63754701]
[1759241843270,0.3608,113320.0,113310.0,0.11483261]
[1759241843466,0.4490082,113320.0,113310.0,0.63754701]
[1759241843668,0.4490082,113320.0,113310.0,0.63454701]
[1759241844067,0.3608,113320.0,113310.0,0.63454701]
[1759241844263,1.19968,113330.0,113320.0,0.0882097]
[1759241844464,1.26958381,113340.0,113330.0,0.088201]
[1759241844663,1.35777701,113340.0,113330.0,0.63455951]
[1759241844968,0.43254381,113340.0,113330.0,0.63455951]
[1759241845165,1.27038381,113340.0,113330.0,0.66608499]
[1759241845366,0.43174381,113340.0,113330.0,0.66608499]
[1759241845666,0.07094381,113340.0,113330.0,0.65829274]
[1759241845863,0.0004,113340.0,113330.0,0.65829274]
[1759241846565,0.4493932,113340.0,113330.0,0.13557834]
[1759241846766,1.3721076,113340.0,113330.0,0.03153808]
[1759241846966,1.3721076,113340.0,113330.0,0.14339437]
[1759241847162,1.3721076,113340.0,113330.0,0.11973898]
[1759241847363,0.83816,113340.0,113330.0,0.68983072]
[1759241847569,0.36949264,113350.0,113340.0,0.0881926]
[1759241847765,0.07944269,113350.0,113340.0,0.68982242]
[1759241847959,0.07864269,113350.0,113340.0,0.68982242]
[1759241848161,0.8863776,113360.0,113350.0,0.0881848]
[1759241848467,0.0024,113360.0,113350.0,0.95443788]
[1759241848662,0.0024,113360.0,113350.0,0.97024496]
[1759241848967,0.38986639,113370.0,113360.0,0.0881773]
[1759241849168,0.36964687,113370.0,113360.0,0.97017824]
[1759241849367,0.84736687,113370.0,113360.0,0.97017824]
[1759241849767,0.0008,113370.0,113360.0,0.97017824]
[1759241849970,1.29545743,113380.0,113370.0,0.0881693]
[1759241850167,1.29625743,113380.0,113370.0,0.53706467]
[1759241850482,1.29625743,113380.0,113370.0,0.11972326]
[1759241850667,0.45857743,113380.0,113370.0,0.14338033]
[1759241850865,1.29621743,113380.0,113370.0,0.05521103]
[1759241851068,1.29621743,113380.0,113370.0,0.14338033]
[1759241851270,1.36619129,113380.0,113370.0,0.11972326]
[1759241851571,1.36611039,113380.0,113370.0,0.11972326]
[1759241851868,0.44038889,113380.0,113370.0,0.66488211]
[1759241852064,0.43157386,113380.0,113370.0,0.64122416]
[1759241852263,1.35729536,113380.0,113370.0,0.16704138]
[1759241852468,1.35729536,113380.0,113370.0,0.11972326]
[1759241852469,1.37129536,113380.0,113370.0,0.11972326]
[1759241852767,1.35729536,113380.0,113370.0,0.11972326]
[1759241852967,2.27879626,113380.0,113370.0,0.03155396]
[1759241853276,2.27879626,113380.0,113370.0,0.05520404]
[1759241853463,2.27879626,113380.0,113370.0,0.02365008]
[1759241853464,2.3018505,113380.0,113370.0,0.02365008]
[1759241853670,1.7803496,113380.0,113370.0,0.02365008]
[1759241853967,2.3018505,113380.0,113370.0,0.02365008]
[1759241855171,0.0881708,113370.0,113360.0,0.02365008]
[1759241855366,0.9704717,113370.0,113360.0,0.02365008]
[1759241855972,1.2863708,113370.0,113360.0,0.11182708]
[1759241856173,1.8078717,113370.0,113360.0,0.11182708]
[1759241856375,1.3003708,113370.0,113360.0,0.11182708]
[1759241857076,1.3003708,113370.0,113360.0,0.02365008]
[1759241857265,1.8218717,113370.0,113360.0,0.02365008]
[1759241857965,2.2218717,113370.0,113360.0,0.02365008]
[1759241858174,2.6592717,113370.0,113360.0,0.02365008]
[1759241858570,0.525577,113360.0,113350.0,0.05520404]
[1759241858769,1.4078779,113360.0,113350.0,0.02365008]
[1759241858975,2.6451579,113360.0,113350.0,0.02365008]
[1759241859574,2.2451579,113360.0,113350.0,0.02365008]
[1759241859776,2.2571579,113360.0,113350.0,0.02365008]
[1759241859976,0.0881848,113350.0,113340.0,0.11974586]
[1759241860280,1.2862648,113350.0,113340.0,0.03155396]
[1759241860483,0.4489848,113350.0,113340.0,0.11974656]
[1759241860780,1.2862248,113350.0,113340.0,0.03155396]
[1759241861078,1.2866248,113350.0,113340.0,0.03155396]
[1759241861477,0.0881926,113340.0,113330.0,0.13551452]
[1759241861675,0.4489926,113340.0,113330.0,0.13551452]
[1759241862781,0.4499926,113340.0,113330.0,0.13551452]
[1759241863182,0.4499926,113340.0,113330.0,0.0881964]
[1759241863388,0.0882003,113330.0,113320.0,0.15160962]
[1759241863681,0.4490003,113330.0,113320.0,0.15160962]
[1759241864182,0.51911794,113330.0,113320.0,0.15160962]
[1759241864480,0.51911794,113330.0,113320.0,0.15161622]
[1759241864983,1.26807764,113330.0,113320.0,0.61682016]
[1759241865180,0.43091764,113330.0,113320.0,0.61682016]
[1759241865382,0.07011764,113330.0,113320.0,1.08022828]
[1759241865583,0.4489925,113340.0,113330.0,0.0881994]
[1759241865783,1.2869525,113340.0,113330.0,0.0881994]
[1759241866079,0.3616,113340.0,113330.0,0.6097003]
[1759241866384,0.3616,113340.0,113330.0,1.07310842]
[1759241866584,0.4489917,113340.0,113330.0,1.07310842]
[1759241866883,0.4493917,113340.0,113330.0,1.07310842]
[1759241867782,0.4493917,113340.0,113330.0,0.55160752]
[1759241868079,0.3612,113340.0,113330.0,0.55160752]
[1759241868381,0.3612,113340.0,113330.0,0.4881994]
[1759241868682,0.4493923,113340.0,113330.0,1.0097003]
[1759241868871,0.4503923,113340.0,113330.0,1.0097003]
[1759241869471,0.52103278,113340.0,113330.0,1.0097003]
[1759241870380,0.43284048,113340.0,113330.0,0.4881994]
[1759241870985,0.52103278,113340.0,113330.0,0.4881994]
[1759241871184,0.43284048,113340.0,113330.0,0.4881994]
[1759241871380,0.52103278,113340.0,113330.0,0.94173806]
[1759241871888,0.52103278,113340.0,113330.0,0.4881994]
[1759241872085,0.52103278,113340.0,113330.0,0.04743859]
[1759241872281,1.37457144,113340.0,113330.0,0.04743859]
[1759241873081,0.92103278,113340.0,113330.0,0.04743859]
[1759241873783,0.92103278,113340.0,113330.0,0.07909491]
[1759241873784,1.37457144,113340.0,113330.0,0.07909491]
[1759241874086,2.19535278,113340.0,113330.0,0.03165632]
[1759241874286,1.79535278,113340.0,113330.0,0.11985602]
[1759241874591,0.95803278,113340.0,113330.0,0.11985602]
[1759241874773,0.87024048,113340.0,113330.0,0.11985602]
[1759241874976,0.86984048,113340.0,113330.0,0.13563829]
[1759241875177,1.70716048,113340.0,113330.0,0.13563829]
[1759241875384,0.87024048,113340.0,113330.0,0.13563829]
[1759241875680,1.79535238,113340.0,113330.0,0.13563829]
[1759241875885,0.87024048,113340.0,113330.0,0.13563829]
[1759241876087,1.79491238,113340.0,113330.0,0.13563829]
[1759241876290,1.79531238,113340.0,113330.0,0.13563829]
[1759241876778,1.70712048,113340.0,113330.0,0.13563829]
[1759241877074,1.79531288,113340.0,113330.0,0.13563829]
[1759241877691,0.0882001,113330.0,113320.0,0.13564259]
[1759241877882,0.4490001,113330.0,113320.0,0.13564259]
[1759241878083,0.4490001,113330.0,113320.0,0.04743859]
[1759241878281,0.4490001,113330.0,113320.0,0.07908451]
[1759241878685,0.4490001,113330.0,113320.0,0.16729241]
[1759241879187,1.30253876,113330.0,113320.0,0.08708451]
[1759241879488,0.8490001,113330.0,113320.0,0.12785392]
[1759241879688,1.6858001,113330.0,113320.0,0.12785392]
[1759241880093,1.69474165,113330.0,113320.0,0.11985392]
[1759241880287,0.85894165,113330.0,113320.0,0.11985392]
[1759241880482,1.29570165,113330.0,113320.0,0.11985392]
[1759241880788,0.37074155,113330.0,113320.0,0.54174666]
[1759241880984,1.29570115,113330.0,113320.0,0.98918525]
[1759241881185,1.20790155,113330.0,113320.0,0.94174666]
[1759241881384,1.29610145,113330.0,113320.0,0.94174666]
[1759241881890,0.37014155,113330.0,113320.0,0.94174666]
[1759241882090,1.20690155,113330.0,113320.0,0.94174666]
[1759241882282,1.29510145,113330.0,113320.0,0.488208]
[1759241882481,1.29510145,113330.0,113320.0,0.15161552]
[1759241882685,1.29510145,113330.0,113320.0,0.05547834]
[1759241882989,1.29510145,113330.0,113320.0,0.14368574]
[1759241883480,0.45834145,113330.0,113320.0,0.14068574]
[1759241883684,1.29506145,113330.0,113320.0,0.14068574]
[1759241884680,0.45834145,113330.0,113320.0,0.14068574]
[1759241884880,1.29502145,113330.0,113320.0,0.13568574]
[1759241885084,1.29498145,113330.0,113320.0,0.13568574]
[1759241885487,1.29498145,113330.0,113320.0,0.0882074]
[1759241885687,1.29598145,113330.0,113320.0,0.003]
[1759241885888,1.29598145,113330.0,113320.0,0.05048971]
[1759241886389,1.29498145,113330.0,113320.0,0.05048971]
[1759241886788,0.45834145,113330.0,113320.0,0.14069711]
[1759241887184,0.37014155,113330.0,113320.0,0.14069711]
[1759241887382,0.37014155,113330.0,113320.0,0.54674606]
[1759241887589,0.95703768,113340.0,113330.0,0.0881996]
[1759241887785,1.70624048,113340.0,113330.0,0.15160772]
[1759241887997,1.27685326,113340.0,113330.0,0.60514638]
[1759241888190,0.44025326,113340.0,113330.0,0.60514638]
[1759241888388,0.91641326,113340.0,113330.0,0.60514638]
[1759241888588,1.27681326,113340.0,113330.0,0.60514638]
[1759241888788,1.27721326,113340.0,113330.0,0.0881996]
[1759241888987,1.36540516,113340.0,113330.0,0.0881996]
[1759241889194,1.36540516,113340.0,113320.0,0.6210576]
[1759241889497,1.36540516,113340.0,113330.0,0.15149245]
[1759241890396,1.36536516,113340.0,113330.0,0.0881996]
[1759241892692,0.44065326,113340.0,113330.0,0.0881996]
[1759241892998,1.27669326,113340.0,113330.0,0.54173826]
[1759241893202,1.27709326,113340.0,113330.0,0.54173826]
[1759241893498,1.36524396,113340.0,113330.0,0.0881996]
[1759241894392,1.36624396,113340.0,113330.0,0.0881996]
[1759241894894,0.0882025,113330.0,113310.0,0.96583961]
[1759241895095,0.44165326,113340.0,113330.0,0.0881996]
[1759241895296,0.44165326,113340.0,113330.0,0.60502808]
[1759241895509,0.07164048,113340.0,113330.0,0.60502808]
[1759241895710,0.0014,113340.0,113330.0,1.3818538]
[1759241895895,0.0014,113340.0,113330.0,2.2181738]
[1759241896098,0.8863698,113370.0,113360.0,0.0881751]
[1759241896403,1.7226498,113370.0,113360.0,0.0881751]
[1759241896796,1.7230498,113370.0,113360.0,0.13560346]
[1759241896997,1.73191214,113370.0,113360.0,0.13560346]
[1759241898604,1.73179214,113370.0,113360.0,0.13560346]
[1759241898803,1.74479214,113370.0,113360.0,0.13560346]
[1759241899305,1.81516004,113370.0,113360.0,0.13560346]
[1759241899496,1.72699024,113370.0,113360.0,0.13560346]
[1759241899697,0.97899764,113370.0,113360.0,0.13560346]
[1759241899896,1.81515764,113370.0,113360.0,0.13560346]
[1759241900398,0.97899764,113370.0,113360.0,0.13560346]
[1759241900697,1.72691024,113370.0,113360.0,0.58914212]
[1759241900906,1.81507844,113370.0,113360.0,0.13560346]
[1759241901401,1.81507844,113370.0,113360.0,0.04742836]
[1759241901606,2.6686171,113370.0,113360.0,0.0315625]
[1759241901799,2.6686171,113370.0,113360.0,0.05523709]
[1759241902902,2.6686171,113370.0,113360.0,0.02367459]
[1759241903104,0.0881756,113360.0,113350.0,0.02367459]
[1759241903310,1.30251426,113360.0,113350.0,0.02367459]
[1759241903510,0.0881834,113350.0,113340.0,0.05523709]
[1759241903710,1.73848206,113350.0,113340.0,0.05523709]
[1759241904005,1.73848206,113350.0,113340.0,0.02367459]
[1759241904611,0.90252206,113350.0,113340.0,0.02367459]
[1759241904813,1.73844206,113350.0,113340.0,0.02367459]
[1759241905511,2.13844206,113350.0,113340.0,0.02367459]
[1759241906105,1.30752206,113350.0,113340.0,0.02367459]
[1759241906304,0.8539834,113350.0,113340.0,0.02367459]
[1759241906505,2.14340206,113350.0,113340.0,0.02367459]
[1759241907411,2.13840206,113350.0,113340.0,0.02367459]
[1759241908106,1.30252206,113350.0,113340.0,0.02367459]
[1759241908306,2.14336206,113350.0,113340.0,0.02367459]
[1759241909107,2.13836206,113350.0,113340.0,0.02367459]
[1759241909306,1.30752206,113350.0,113340.0,0.02367459]
[1759241909512,2.14332206,113350.0,113340.0,0.02367459]
[1759241909815,0.0881912,113340.0,113330.0,0.02367459]
[1759241910010,0.90252986,113340.0,113330.0,0.02367459]
[1759241910210,0.4489912,113340.0,113330.0,0.02367459]
[1759241910412,0.4489912,113340.0,113330.0,0.05523709]
[1759241910610,1.2851512,113340.0,113330.0,0.14343599]
[1759241910811,1.2851912,113340.0,113330.0,0.14343599]
[1759241911011,1.2851912,113340.0,113330.0,0.1197614]
[1759241911215,1.2851912,113340.0,113330.0,0.16718976]
[1759241911514,1.2847912,113340.0,113330.0,0.16718976]
[1759241911710,1.2851912,113340.0,113330.0,0.16718976]
[1759241911909,1.2847912,113340.0,113330.0,0.16718976]
[1759241912112,1.2851912,113340.0,113330.0,0.16718976]
[1759241912611,0.4493912,113340.0,113330.0,0.16718976]
[1759241913015,1.2851112,113340.0,113330.0,0.16718976]
[1759241913218,1.2851112,113340.0,113330.0,0.13562726]
[1759241913812,1.2851112,113340.0,113330.0,0.07901975]
[1759241914411,1.2851112,113340.0,113330.0,0.16722118]
[1759241914607,0.4493912,113340.0,113330.0,0.13562826]
[1759241914815,1.2850712,113340.0,113330.0,0.13562826]
[1759241915015,1.2846712,113340.0,113330.0,0.13562826]
[1759241915212,0.4493912,113340.0,113330.0,0.53562826]
[1759241915525,0.0004,113340.0,113330.0,0.98916692]
[1759241915913,0.0004,113340.0,113330.0,1.36579695]
[1759241916109,0.02043405,113350.0,113340.0,0.0881916]
[1759241916318,0.02043405,113350.0,113340.0,0.96578865]
[1759241916714,0.02083405,113350.0,113340.0,0.96578865]
[1759241917316,0.0885839,113350.0,113340.0,0.96578865]
[1759241917518,0.0885839,113350.0,113340.0,0.15144999]
[1759241917924,0.0885839,113350.0,113340.0,0.06325839]
[1759241918124,0.90292256,113350.0,113340.0,0.06325839]
[1759241918327,0.90292256,113350.0,113340.0,0.0474076]
[1759241918523,0.90792256,113350.0,113340.0,0.07901934]
[1759241920221,0.4543839,113350.0,113340.0,0.07901934]
[1759241920729,0.90792256,113350.0,113340.0,0.03161174]
[1759241920924,0.90792256,113350.0,113340.0,0.07901934]
[1759241922420,0.4543839,113350.0,113340.0,0.16721214]
[1759241922626,0.9290639,113350.0,113340.0,0.1356004]
[1759241922921,0.9286644,113350.0,113340.0,0.98913906]
[1759241923120,0.9290244,113350.0,113340.0,0.98913906]
[1759241923323,1.2894244,113350.0,113340.0,0.98913906]
[1759241923522,1.2898244,113350.0,113340.0,0.5356004]
[1759241923723,1.2894244,113350.0,113340.0,0.5356004]
[1759241924026,1.2898244,113350.0,113340.0,0.5356004]
[1759241924327,1.2898244,113350.0,113340.0,0.5356001]
[1759241924723,1.2898244,113350.0,113340.0,0.07902241]
[1759241924924,1.2897844,113350.0,113340.0,0.16721491]
[1759241925122,1.2897844,113350.0,113340.0,0.07902519]
[1759241925919,1.74332306,113350.0,113340.0,0.07902519]
[1759241926326,1.74332306,113350.0,113340.0,0.03161759]
[1759241926523,0.4543844,113350.0,113340.0,0.03161759]
[1759241926728,1.74324306,113350.0,113340.0,0.03161759]
[1759241927231,1.2897044,113350.0,113340.0,0.03161759]
[1759241927429,1.74324306,113350.0,113340.0,0.03161759]
[1759241927630,1.74324306,113350.0,113340.0,0.05534067]
[1759241928535,2.14324306,113350.0,113340.0,0.05534067]
[1759241929032,1.30792306,113350.0,113340.0,0.05534067]
[1759241929234,0.4543844,113350.0,113340.0,0.05534067]
[1759241929537,1.2892244,113350.0,113340.0,0.11980949]
[1759241929834,0.4543844,113350.0,113340.0,0.16721709]
[1759241930038,1.2892244,113350.0,113340.0,0.0474076]
[1759241930334,1.2896244,113350.0,113340.0,0.0474076]
[1759241930533,1.74316306,113350.0,113340.0,0.0474076]
[1759241930834,1.74316306,113350.0,113340.0,0.07905902]
[1759241931029,0.4543844,113350.0,113340.0,0.03165142]
[1759241931229,0.4543844,113350.0,113340.0,0.16725092]
[1759241931429,1.2895844,113350.0,113340.0,0.1355995]
[1759241931631,1.2891844,113350.0,113340.0,0.1355995]
[1759241931936,1.2895844,113350.0,113340.0,0.1355995]
[1759241932236,0.4543844,113350.0,113340.0,0.1355995]
[1759241932538,1.2895844,113350.0,113340.0,0.1355995]
[1759241932834,1.2895844,113350.0,113340.0,0.0881919]
[1759241933330,0.4543844,113350.0,113340.0,0.0881919]
[1759241933527,1.2895444,113350.0,113340.0,0.0881919]
[1759241933723,0.4543844,113350.0,113340.0,0.0881919]
[1759241934128,1.2895044,113350.0,113340.0,0.67323876]
[1759241934331,0.4543844,113350.0,113340.0,1.07323876]
[1759241934535,1.2890644,113350.0,113340.0,1.07323876]
[1759241934836,0.4543844,113350.0,113340.0,1.07323876]
[1759241935235,0.4543844,113350.0,113340.0,0.55145029]
[1759241935438,0.97617287,113350.0,113340.0,0.06325839]
[1759241935935,0.4543844,113350.0,113340.0,0.15145029]
[1759241936335,1.2894244,113350.0,113340.0,0.15145029]
[1759241936529,1.2890244,113350.0,113340.0,0.15145029]
[1759241936725,0.97617287,113350.0,113340.0,0.06325839]
[1759241937032,0.0881906,113340.0,113330.0,0.06325839]
[1759241937236,0.97077907,113340.0,113330.0,0.06325839]
[1759241938938,0.97077907,113340.0,113330.0,0.04750877]
[1759241940432,1.80565907,113340.0,113330.0,0.04750877]
[1759241940638,0.4489906,113340.0,113330.0,0.13570727]
[1759241940839,1.2838706,113340.0,113330.0,0.65749574]
[1759241941026,1.2838706,113340.0,113330.0,0.67324536]
[1759241941231,1.2842706,113340.0,113330.0,0.67324536]
[1759241941432,1.2892706,113340.0,113330.0,0.67324536]
[1759241941633,1.20108,113340.0,113330.0,0.67324536]
[1759241941837,1.2892707,113340.0,113330.0,0.15145689]
[1759241942039,1.20104,113340.0,113330.0,0.15145689]
[1759241942540,1.2892307,113340.0,113330.0,0.15145689]
[1759241942933,1.2842307,113340.0,113330.0,0.15145689]
[1759241943235,0.8352,113340.0,113330.0,0.15145689]
[1759241943542,0.0885906,113340.0,113330.0,0.15145689]
[1759241943735,0.0004,113340.0,113330.0,0.51225689]
[1759241943941,0.0004,113340.0,113330.0,1.37078697]
[1759241944241,0.8871801,113360.0,113350.0,0.0881828]
[1759241944435,1.7219401,113360.0,113350.0,0.06334523]
[1759241944636,0.8863801,113360.0,113340.0,0.6733188]
[1759241944837,0.8867801,113360.0,113350.0,0.06334523]
[1759241945042,1.7215401,113360.0,113350.0,0.06334523]
[1759241945538,0.8977801,113360.0,113350.0,0.06334523]
[1759241945738,1.7325001,113360.0,113350.0,0.06334523]
[1759241946640,0.0881833,113350.0,113340.0,0.15153623]
[1759241947144,0.83464,113350.0,113340.0,0.6733247]
[1759241947644,0.9228232,113350.0,113340.0,0.15153623]
[1759241947842,0.9232232,113350.0,113340.0,0.6733247]
[1759241948045,0.9282232,113350.0,113340.0,0.15153623]
[1759241949541,0.9232232,113350.0,113340.0,0.15153623]
[1759241950247,1.25243484,113350.0,113340.0,0.56893107]
[1759241950442,0.83504,113350.0,113340.0,0.98632591]
[1759241950839,0.83504,113350.0,113340.0,0.48074007]
[1759241950840,1.34061804,113350.0,113340.0,0.48074007]
[1759241951243,1.34061804,113350.0,113340.0,0.06334523]
[1759241951447,1.70141804,113350.0,113340.0,0.06334523]
[1759241952449,0.088191,113340.0,113330.0,0.56893207]
[1759241952650,0.50558584,113340.0,113330.0,0.56893207]
[1759241953035,0.50558584,113340.0,113330.0,0.48074007]
[1759241953243,0.50558584,113340.0,113330.0,0.58490918]
[1759241953649,0.088191,113340.0,113330.0,0.58490918]
[1759241953844,0.50558584,113340.0,113330.0,0.50559364]
[1759241954048,0.41739484,113340.0,113330.0,0.50559364]
[1759241954351,0.3612,113350.0,113340.0,0.088191]
[1759241954651,0.77819484,113350.0,113340.0,0.98631814]
[1759241954848,0.83472,113350.0,113340.0,0.98631814]
[1759241955049,1.30377584,113360.0,113350.0,0.0881833]
[1759241955353,1.30457584,113360.0,113350.0,0.5689156]
[1759241955549,2.13809584,113360.0,113350.0,0.50557814]
[1759241955743,2.13849584,113360.0,113350.0,0.50557814]
[1759241956246,0.8867812,113360.0,113350.0,0.0881833]
[1759241956449,2.2428461,113360.0,113350.0,0.0881833]
[1759241956644,2.2428461,113360.0,113340.0,0.06333746]
[1759241956645,0.0881833,113350.0,113340.0,0.06333746]
[1759241956845,0.9707682,113350.0,113340.0,0.06333746]
[1759241957249,1.3707682,113350.0,113340.0,0.06333746]
[1759241957449,1.3707682,113350.0,113340.0,0.07918417]
[1759241958645,1.3707682,113350.0,113340.0,0.03167367]
[1759241959747,2.2099682,113350.0,113340.0,0.03167367]
[1759241959946,1.2881433,113350.0,113340.0,0.03167367]
[1759241960146,1.8099282,113350.0,113340.0,0.03167367]
[1759241962550,2.2098482,113350.0,113340.0,0.03167367]
[1759241962948,1.3757682,113350.0,113340.0,0.03167367]
[1759241963257,2.2098082,113350.0,113340.0,0.03167367]
[1759241964145,1.3757682,113350.0,113340.0,0.03167367]
[1759241964452,1.8097682,113350.0,113340.0,0.03167367]
[1759241964847,1.8101682,113350.0,113340.0,0.03167367]
[1759241965455,2.2101682,113350.0,113340.0,0.03167367]
[1759241966051,0.0881912,113340.0,113330.0,0.0475105]
[1759241966251,0.9707761,113340.0,113330.0,0.02376465]
[1759241966551,1.8047361,113340.0,113330.0,0.02376465]
[1759241966953,0.9707761,113340.0,113330.0,0.02376465]
[1759241967851,1.8050961,113340.0,113330.0,0.02376465]
[1759241968052,0.9711761,113340.0,113330.0,0.02376465]
[1759241968252,1.8050961,113340.0,113330.0,0.02376465]
[1759241968647,0.088199,113330.0,113320.0,0.1357147]
[1759241968847,0.448999,113330.0,113320.0,0.1357147]
[1759241969049,1.282879,113330.0,113320.0,0.1357147]
[1759241969447,1.3537867,113330.0,113320.0,0.1357147]
[1759241969941,1.3537867,113330.0,113320.0,0.1387147]
[1759241970153,1.3537867,113330.0,113320.0,0.1447147]
[1759241970356,1.3537467,113330.0,113320.0,0.1447147]
[1759241971161,1.8755316,113330.0,113320.0,0.0565105]
[1759241972245,1.8755316,113330.0,113320.0,0.1357172]
[1759241972449,1.0416916,113330.0,113320.0,0.1357172]
[1759241972649,2.00471308,113330.0,113320.0,0.1357172]
[1759241973453,2.00471308,113330.0,113320.0,0.0475105]
[1759241973666,2.40471308,113330.0,113320.0,0.0475105]
[1759241973960,0.0882067,113320.0,113310.0,0.0475105]
[1759241974258,0.0882145,113310.0,113300.0,0.1486805]